bitfinex/quotes_ETHUSD_20250525
["timestamp","ask_amount","ask_price","bid_price","bid_amount"]
[1748192410800,0.6360829,2509.8,2509.5,8.0]
[1748192411121,0.6360829,2509.8,2509.5,11.98479262]
[1748192411931,0.6360829,2509.8,2509.5,8.0]
[1748192413048,0.6360829,2509.8,2509.5,11.98484285]
[1748192413502,0.6360829,2509.8,2509.5,8.0]
[1748192413917,0.6360829,2509.8,2509.5,11.98477875]
[1748192414301,4.17136251,2509.9,2509.5,11.98477875]
[1748192414302,4.80744541,2509.9,2509.5,11.98477875]
[1748192414820,4.80744541,2509.9,2509.4,11.98493125]
[1748192414821,2.83372791,2509.9,2509.4,11.98493125]
[1748192415313,2.83372791,2509.9,2509.6,8.0]
[1748192415518,4.62050301,2509.8,2509.4,8.0]
[1748192415823,4.62050301,2509.8,2509.4,11.98493113]
[1748192416208,0.6360829,2509.8,2509.6,8.0]
[1748192417208,3.98441442,2509.8,2509.4,11.98493758]
[1748192417408,6.81803725,2509.9,2509.4,11.98493758]
[1748192417612,6.81803725,2509.9,2509.4,15.96493758]
[1748192418236,6.81803725,2509.9,2509.6,8.0]
[1748192418396,0.6360829,2509.8,2509.4,15.96492594]
[1748192418696,0.6360829,2509.8,2509.5,8.0]
[1748192420335,0.6360829,2509.8,2509.5,11.98485182]
[1748192420830,0.6360829,2509.8,2509.5,8.0]
[1748192421036,4.6204734,2509.8,2509.5,8.0]
[1748192421235,0.6360829,2509.8,2509.5,8.0]
[1748192421656,0.6360829,2509.8,2509.5,11.98485026]
[1748192421826,0.6360829,2509.8,2509.6,8.0]
[1748192422361,0.6360829,2509.8,2509.5,8.0]
[1748192422752,0.6360829,2509.8,2509.5,11.98485557]
[1748192423060,0.6360829,2509.8,2509.5,8.0]
[1748192423437,0.6360829,2509.8,2509.5,11.98484169]
[1748192424727,0.6360829,2509.8,2509.5,8.0]
[1748192425448,0.6360829,2509.8,2509.5,11.9847835]
[1748192426227,0.6360829,2509.8,2509.5,14.7945674]
[1748192426591,0.6360829,2509.8,2509.7,12.79763998]
[1748192426753,2.01054501,2510.0,2509.9,12.79732247]
[1748192427095,2.61216691,2510.7,2509.9,12.79732247]
[1748192427096,3.8709892,2510.7,2510.6,4.7962116]
[1748192427299,1.63352787,2510.9,2510.8,12.79589432]
[1748192427428,1.63352787,2510.9,2510.8,13.39947972]
[1748192427626,5.56862983,2511.5,2511.0,3.9824771]
[1748192427935,5.56862983,2511.5,2511.2,3.98215992]
[1748192428136,1.8182634,2511.4,2511.3,11.98200135]
[1748192428351,1.8182634,2511.4,2511.3,11.98]
[1748192428738,1.8182634,2511.4,2511.3,15.96200135]
[1748192429154,1.8182634,2511.4,2511.3,11.979]
[1748192429480,1.8182634,2511.4,2511.3,15.96100135]
[1748192430853,1.8182634,2511.4,2511.3,8.0]
[1748192431052,1.8182634,2511.4,2511.3,15.96100135]
[1748192434784,1.8182634,2511.4,2511.3,11.98200135]
[1748192434974,1.8182634,2511.4,2511.3,15.95900135]
[1748192435179,1.8182634,2511.4,2511.0,0.8131]
[1748192435488,3.9822377,2511.2,2510.5,0.8089]
[1748192435687,5.1429,2511.3,2510.7,8.0]
[1748192435877,5.14995663,2511.2,2510.7,11.98294721]
[1748192436078,5.14995663,2511.2,2510.7,3.98294721]
[1748192436274,3.98233411,2511.1,2510.7,3.98294721]
[1748192436583,5.14992362,2511.2,2510.8,8.0]
[1748192437288,5.14992362,2511.2,2510.8,3.98278419]
[1748192437492,5.14992362,2511.2,2510.8,0.3983]
[1748192437655,5.14992362,2511.2,2510.8,3.98279357]
[1748192438665,5.14992362,2511.2,2510.8,3.98277374]
[1748192439057,5.14992362,2511.2,2510.7,8.0]
[1748192439254,0.8919,2511.3,2511.1,8.0]
[1748192439487,4.251,2511.4,2511.1,3.9822445]
[1748192439956,0.8969,2511.5,2511.1,3.9822445]
[1748192440157,0.8969,2511.5,2511.0,8.0]
[1748192440397,4.87859869,2511.5,2511.1,3.98224754]
[1748192440569,6.66313141,2511.5,2511.0,11.98238234]
[1748192440770,2.68143272,2511.5,2511.1,3.98216172]
[1748192440960,6.66318237,2511.5,2511.0,11.98238234]
[1748192441160,4.87864965,2511.5,2511.0,11.98238234]
[1748192441595,0.8969,2511.5,2511.1,3.9823185]
[1748192441790,0.8969,2511.5,2511.3,3.98192913]
[1748192441992,0.8969,2511.5,2511.3,8.0]
[1748192442660,0.8969,2511.5,2511.2,8.0]
[1748192443703,4.878646,2511.5,2511.2,8.0]
[1748192444420,0.8969,2511.5,2511.2,8.0]
[1748192444711,0.8969,2511.5,2511.2,3.98215237]
[1748192445069,4.8786048,2511.5,2511.1,11.98229767]
[1748192445269,0.8969,2511.5,2511.1,11.98229767]
[1748192446310,0.8969,2511.5,2511.0,11.98241379]
[1748192446523,0.8969,2511.5,2511.1,3.9823185]
[1748192446707,0.8969,2511.5,2511.0,8.0]
[1748192446915,0.8969,2511.5,2511.1,3.98219608]
[1748192447331,0.8969,2511.5,2511.2,3.98214693]
[1748192447825,0.005,2511.5,2511.2,3.98214693]
[1748192447989,0.005,2511.5,2511.2,0.0398169]
[1748192448190,0.005,2511.5,2511.2,3.98212022]
[1748192448723,3.98680086,2511.5,2511.0,13.72882495]
[1748192448898,0.005,2511.5,2511.1,3.98223012]
[1748192450317,3.98186815,2511.4,2511.0,11.98239361]
[1748192450492,3.9823285,2511.1,2510.8,8.0]
[1748192450693,3.98224365,2511.2,2510.6,7.96005005]
[1748192450900,4.87277004,2511.3,2511.0,8.0]
[1748192451634,3.98217375,2511.2,2510.8,11.98270127]
[1748192452331,6.5814384,2511.3,2510.8,11.98270127]
[1748192452716,6.5814384,2511.3,2510.9,8.0]
[1748192453012,6.5814384,2511.3,2510.9,11.98261471]
[1748192453210,6.58137122,2511.3,2510.9,3.98261471]
[1748192454940,3.98216432,2511.2,2510.7,8.0]
[1748192455104,3.98253637,2511.0,2510.5,11.98314811]
[1748192455435,4.90744448,2510.9,2510.5,8.0]
[1748192455636,0.9248,2510.9,2510.3,3.98349892]
[1748192455804,3.98289514,2510.8,2510.3,15.96049892]
[1748192456010,4.90753932,2510.9,2510.4,8.0]
[1748192456232,3.98286659,2510.8,2510.4,11.98340981]
[1748192456434,0.9248,2510.9,2510.6,8.0]
[1748192456630,0.9197,2511.1,2510.6,4.58175567]
[1748192456830,0.9197,2511.1,2511.0,11.9824771]
[1748192456831,0.63447,2511.1,2511.0,11.9824771]
[1748192457036,0.63447,2511.1,2511.0,12.58121035]
[1748192457211,0.63447,2511.1,2511.0,14.32733142]
[1748192457541,0.63447,2511.1,2511.0,18.30433142]
[1748192458547,0.005,2511.5,2511.2,8.0]
[1748192459115,3.98213722,2511.3,2510.8,8.0]
[1748192459442,3.98213722,2511.3,2511.0,8.0]
[1748192459741,4.90163682,2511.4,2511.0,8.0]
[1748192460405,3.9821817,2511.2,2510.9,8.0]
[1748192460605,3.98205545,2511.3,2510.9,8.0]
[1748192461408,3.98205545,2511.3,2510.9,11.98262251]
[1748192462449,0.9197,2511.4,2510.9,8.68441175]
[1748192462655,0.9197,2511.4,2511.2,8.0]
[1748192462837,0.9197,2511.4,2511.2,11.98214834]
[1748192463133,0.63947,2511.5,2511.2,11.98214834]
[1748192463550,0.63947,2511.5,2511.3,3.98189169]
[1748192463738,0.63947,2511.5,2511.3,0.03981696]
[1748192463930,0.63947,2511.5,2511.4,8.0]
[1748192464143,0.63947,2511.5,2511.2,11.98207125]
[1748192464355,0.63947,2511.5,2511.3,8.0]
[1748192464551,0.48101269,2511.5,2511.2,8.0]
[1748192464926,0.48101269,2511.5,2511.2,3.98215949]
[1748192466435,0.48101269,2511.5,2511.1,3.98222525]
[1748192466636,0.48101269,2511.5,2511.0,12.85270806]
[1748192466841,0.48101269,2511.5,2511.2,3.98215629]
[1748192467717,0.48101269,2511.5,2511.1,4.82283448]
[1748192468620,0.48101269,2511.5,2511.4,8.0]
[1748192468923,0.48101269,2511.5,2511.3,8.0]
[1748192469127,0.48101269,2511.5,2511.2,8.0]
[1748192469338,3.98669664,2511.5,2511.2,8.0]
[1748192469535,0.005,2511.5,2511.2,8.0]
[1748192470462,0.47628321,2511.4,2511.2,8.0]
[1748192470767,0.47628321,2511.4,2511.2,9.76756319]
[1748192471456,0.47628321,2511.4,2511.2,13.74965396]
[1748192471771,0.47628321,2511.4,2511.2,9.76756319]
[1748192472160,0.47628321,2511.4,2511.1,0.84061134]
[1748192472472,0.47628321,2511.4,2511.1,8.0]
[1748192473431,0.47628321,2511.4,2511.1,11.98231547]
[1748192473671,0.47628321,2511.4,2511.1,8.0]
[1748192473892,0.47628321,2511.4,2511.1,11.98221403]
[1748192475354,0.47628321,2511.4,2511.2,3.98215332]
[1748192475676,0.47628321,2511.4,2511.3,3.98200135]
[1748192475880,0.47628321,2511.4,2511.3,11.98200135]
[1748192476084,0.47628321,2511.4,2511.3,15.95900135]
[1748192476397,0.47628321,2511.4,2511.3,18.07387183]
[1748192476534,0.47628321,2511.4,2511.3,18.47217183]
[1748192476741,0.005,2511.5,2511.4,13.32274279]
[1748192477148,0.005,2511.5,2511.4,17.29974279]
[1748192477768,0.005,2511.5,2511.4,13.32274279]
[1748192478089,0.005,2511.5,2511.4,17.29974279]
[1748192478297,0.005,2511.5,2511.4,16.35714279]
[1748192478591,0.005,2511.5,2511.4,18.4434071]
[1748192480070,0.005,2511.5,2511.4,14.4664071]
[1748192480579,0.005,2511.5,2511.4,3.977]
[1748192481076,3.98668425,2511.5,2511.1,4.38051721]
[1748192481373,3.98668425,2511.5,2511.3,8.0]
[1748192481577,0.005,2511.5,2511.3,8.0]
[1748192484645,0.005,2511.5,2511.3,11.98187668]
[1748192484856,0.005,2511.5,2511.3,10.23445092]
[1748192485179,0.005,2511.5,2511.4,3.98184279]
[1748192485380,0.005,2511.5,2511.3,10.23445092]
[1748192485550,0.005,2511.5,2511.3,8.0]
[1748192485753,0.005,2511.5,2511.3,11.98191811]
[1748192487554,0.005,2511.5,2511.4,3.98184279]
[1748192487909,0.005,2511.5,2511.4,7.50235213]
[1748192488212,0.005,2511.5,2511.4,8.07588936]
[1748192489399,0.005,2511.5,2511.4,3.16634657]
[1748192489606,0.005,2511.5,2511.3,7.95897005]
[1748192489758,0.005,2511.5,2511.4,11.98184279]
[1748192489953,0.005,2511.5,2511.4,8.0]
[1748192490157,0.005,2511.5,2511.4,11.98184279]
[1748192491400,0.005,2511.5,2511.4,14.61448914]
[1748192492994,0.005,2511.5,2511.4,15.54398914]
[1748192493894,0.005,2511.5,2511.4,16.11752637]
[1748192494715,0.005,2511.5,2511.4,16.95932785]
[1748192495011,0.005,2511.5,2511.4,19.31955589]
[1748192495371,0.005,2511.5,2511.4,20.49182637]
[1748192500669,0.005,2511.5,2511.4,20.93532785]
[1748192503408,0.55,2511.9,2511.8,11.98120869]
[1748192503608,0.55,2511.9,2511.8,18.46719269]
[1748192505789,0.53519,2511.9,2511.8,18.46719269]
[1748192507013,0.47628321,2512.6,2511.8,18.46719269]
[1748192507014,0.47628321,2512.6,2512.5,3.9800995]
[1748192507216,0.63447,2512.8,2512.7,3.9797827]
[1748192507397,1.62376044,2513.9,2512.9,8.0]
[1748192507398,0.10831333,2513.9,2512.9,8.0]
[1748192507598,3.97813741,2513.8,2513.3,8.0]
[1748192507813,3.97830827,2513.7,2513.3,8.0]
[1748192508111,4.52812632,2513.8,2513.3,11.97880609]
[1748192508319,0.86143871,2513.7,2513.3,11.97873062]
[1748192508518,3.97779205,2514.0,2513.5,8.0]
[1748192508712,3.97805482,2513.8,2513.3,11.9787447]
[1748192509028,3.97858741,2513.5,2513.2,8.0]
[1748192509319,3.9785337,2513.5,2513.1,11.97909596]
[1748192509539,0.39785337,2513.4,2513.1,3.97905274]
[1748192510520,0.3864,2513.3,2513.1,3.97905274]
[1748192510705,0.3864,2513.3,2513.1,3.97907653]
[1748192511027,0.39785337,2513.4,2513.3,8.0]
[1748192511325,0.3864,2513.5,2513.3,8.0]
[1748192511563,0.3864,2513.5,2513.3,11.97882993]
[1748192511729,0.3864,2513.5,2513.2,3.97894286]
[1748192511907,0.3864,2513.5,2513.1,11.9790553]
[1748192512103,4.36491767,2513.5,2513.1,8.0]
[1748192512313,0.83433123,2513.4,2513.1,8.0]
[1748192512889,0.83433123,2513.4,2513.1,11.97910342]
[1748192513288,0.3864,2513.5,2513.1,8.0]
[1748192513711,0.3864,2513.5,2513.3,8.0]
[1748192514219,0.3864,2513.5,2513.3,11.97881461]
[1748192514419,0.3864,2513.5,2513.2,8.0]
[1748192514624,0.3864,2513.5,2513.0,4.59962443]
[1748192514625,0.3864,2513.5,2513.1,11.975]
[1748192514808,0.82288494,2513.5,2513.1,11.975]
[1748192515124,0.25957348,2513.5,2513.3,3.97870891]
[1748192515358,0.25957348,2513.5,2513.2,3.97898786]
[1748192515514,0.25957348,2513.5,2513.3,3.9788299]
[1748192516140,0.25957348,2513.5,2513.4,11.9786743]
[1748192516340,0.3693771,2513.8,2513.4,11.9786743]
[1748192516552,0.3693771,2513.8,2513.4,8.0]
[1748192516553,0.8325185,2513.8,2513.4,8.0]
[1748192516735,3.97827433,2513.7,2513.4,8.0]
[1748192516935,3.97843702,2513.6,2513.4,8.0]
[1748192517130,3.97823407,2513.7,2513.4,8.0]
[1748192517636,3.97815912,2513.8,2513.4,8.0]
[1748192518033,3.97815912,2513.8,2513.4,11.97865212]
[1748192518034,0.2596,2513.8,2513.4,11.97865212]
[1748192518227,3.97820885,2513.7,2513.4,8.0]
[1748192518427,0.42378089,2513.6,2513.4,8.0]
[1748192518740,0.42378089,2513.6,2513.4,11.97858036]
[1748192519036,0.2596,2513.8,2513.4,11.97858036]
[1748192520245,0.2596,2513.8,2513.6,8.0]
[1748192520447,4.23767627,2513.8,2513.4,11.97859176]
[1748192520650,3.97843377,2513.6,2513.3,8.0]
[1748192520838,3.97883054,2513.4,2513.0,8.0]
[1748192521016,0.39784338,2513.5,2513.1,3.97912045]
[1748192521214,4.37646602,2513.5,2513.1,8.0]
[1748192521419,0.2596,2513.3,2513.0,11.974]
[1748192521637,1.12108115,2513.3,2513.0,11.974]
[1748192521974,1.12108115,2513.3,2513.0,15.95329232]
[1748192522376,1.12108115,2513.3,2513.0,12.59868598]
[1748192522680,4.2385036,2513.3,2513.0,12.59868598]
[1748192522876,4.2385036,2513.3,2513.0,16.5779589]
[1748192522877,0.2596,2513.3,2513.0,16.5779589]
[1748192523466,0.2596,2513.3,2513.0,12.59868598]
[1748192523668,0.2596,2513.3,2513.1,8.0]
[1748192523867,3.97950046,2512.9,2512.7,0.62462443]
[1748192524070,3.97994109,2512.6,2512.2,8.57919435]
[1748192524234,3.97994109,2512.6,2512.1,0.05]
[1748192524235,0.2596,2512.5,2512.1,0.05]
[1748192524643,3.98025792,2512.4,2512.1,0.05]
[1748192524841,0.2596,2512.5,2512.1,4.03060719]
[1748192525079,0.2596,2512.5,2512.1,0.67462443]
[1748192525284,3.98041635,2512.3,2512.2,0.62462443]
[1748192525452,4.66403978,2512.3,2512.1,0.05]
[1748192525658,4.66401809,2512.3,2512.1,0.05]
[1748192525854,4.66412622,2512.3,2512.1,0.67462443]
[1748192526057,4.53057479,2512.2,2512.1,0.05]
[1748192526460,4.83537479,2512.2,2512.1,0.05]
[1748192526680,5.75934317,2512.2,2512.1,0.05]
[1748192526886,4.83537479,2512.2,2512.1,0.05]
[1748192527300,0.3048,2512.2,2512.1,0.05]
[1748192529993,4.28537479,2512.2,2512.1,0.05]
[1748192530194,0.3048,2512.2,2512.1,0.05]
[1748192530413,4.28510955,2512.4,2512.1,0.05]
[1748192531100,3.98056067,2512.3,2512.1,0.05]
[1748192532008,0.3048,2512.4,2512.1,0.05]
[1748192532165,0.3048,2512.4,2512.2,8.0]
[1748192532366,0.3048,2512.4,2512.2,8.62462443]
[1748192532916,0.3048,2512.6,2512.2,0.62462443]
[1748192533121,3.98016632,2512.5,2512.2,0.62462443]
[1748192533404,5.53815281,2512.6,2512.2,0.62462443]
[1748192533567,1.55814427,2512.6,2512.3,8.0]
[1748192534302,5.53810677,2512.6,2512.3,8.0]
[1748192534502,0.3048,2512.8,2512.4,4.60479721]
[1748192534797,0.3048,2512.8,2512.5,8.0]
[1748192535005,4.28445863,2512.8,2512.4,0.62462443]
[1748192535386,3.97981082,2512.7,2512.4,0.62462443]
[1748192535594,4.4632719,2512.7,2512.2,13.49876597]
[1748192535968,4.4632719,2512.7,2512.2,1.51828598]
[1748192536171,0.48346108,2512.7,2512.1,12.65523418]
[1748192536378,3.9798746,2512.7,2512.2,3.98053309]
[1748192536565,3.97995062,2512.6,2512.2,3.98053309]
[1748192536791,3.9798561,2512.7,2512.2,3.98050392]
[1748192536992,3.9798561,2512.7,2512.3,3.98038878]
[1748192537188,0.3048,2512.8,2512.1,8.67462443]
[1748192537394,0.3048,2512.8,2512.5,11.98002503]
[1748192537592,0.3048,2512.8,2512.5,8.0]
[1748192538491,4.28443575,2512.8,2512.4,8.0]
[1748192538902,0.3048,2512.8,2512.3,12.91474173]
[1748192539112,4.28449927,2512.8,2512.3,12.91474173]
[1748192539704,4.28448734,2512.8,2512.3,12.91472587]
[1748192540367,4.28448734,2512.8,2512.3,12.91472896]
[1748192540573,1.52869247,2512.8,2512.2,9.20531041]
[1748192540814,3.98057479,2512.2,2512.1,0.05]
[1748192541104,3.98051911,2512.3,2512.1,0.05]
[1748192541474,3.98041635,2512.3,2512.1,0.05]
[1748192541697,3.98057479,2512.2,2512.1,0.05]
[1748192542085,4.28537479,2512.2,2512.1,0.05]
[1748192542271,6.4868539,2512.2,2512.1,0.05]
[1748192544476,6.81930482,2512.2,2512.1,0.05]
[1748192547615,7.45053708,2512.2,2512.1,0.05]
[1748192548613,15.15153708,2512.2,2512.1,0.05]
[1748192548822,15.70153708,2512.2,2512.1,0.05]
[1748192549323,15.07030482,2512.2,2512.1,0.05]
[1748192553241,11.42653708,2512.2,2512.1,0.05]
[1748192555820,10.79530482,2512.2,2512.1,0.05]
[1748192560337,15.07230482,2512.2,2512.1,0.05]
[1748192564118,15.27962602,2512.2,2512.1,0.05]
[1748192565115,23.27962602,2512.2,2512.1,0.05]
[1748192566320,27.46862602,2512.2,2512.1,0.05]
[1748192566727,4.53215992,2511.2,2511.1,0.05]
[1748192567426,0.3047,2511.4,2511.1,0.05]
[1748192567625,3.98200135,2511.3,2511.2,0.9382]
[1748192568711,3.98215992,2511.2,2511.1,0.05]
[1748192569052,0.4751228,2511.4,2511.1,0.05]
[1748192569254,3.98215992,2511.2,2511.1,0.05]
[1748192569957,3.98200135,2511.3,2511.1,0.05]
[1748192570155,3.98215992,2511.2,2511.1,0.05]
[1748192575354,5.3760896,2511.2,2511.1,0.05]
[1748192576433,5.8512124,2511.2,2511.1,0.05]
[1748192576780,5.00728272,2511.2,2511.1,0.05]
[1748192577734,4.53215992,2511.2,2511.1,0.05]
[1748192580857,4.83685992,2511.2,2511.1,0.05]
[1748192582909,5.47020471,2511.2,2511.1,0.05]
[1748192584623,5.16931084,2511.2,2511.1,0.05]
[1748192584775,6.90744333,2511.2,2511.1,0.05]
[1748192587016,15.13944333,2511.2,2511.1,0.05]
[1748192588215,10.61144333,2511.2,2511.1,0.05]
[1748192588418,14.28474333,2511.2,2511.1,0.05]
[1748192588806,14.83474333,2511.2,2511.1,0.05]
[1748192589013,6.60274333,2511.2,2511.1,0.05]
[1748192589188,14.28474333,2511.2,2511.1,0.05]
[1748192589385,14.83474333,2511.2,2511.1,0.05]
[1748192589796,6.60274333,2511.2,2511.1,0.05]
[1748192590122,16.43245529,2511.2,2511.1,0.05]
[1748192590489,16.65455529,2511.2,2511.1,0.05]
[1748192600140,16.86197899,2511.2,2511.1,0.05]
[1748192600341,24.86197899,2511.2,2511.1,0.05]
[1748192601776,3.98374631,2510.2,2510.1,0.9429]
[1748192601983,3.98374631,2510.2,2510.1,2.05904375]
[1748192602215,4.255,2510.7,2510.3,0.8929]
[1748192602349,4.255,2510.7,2510.4,0.57212443]
[1748192602350,4.58745092,2510.7,2510.4,0.57212443]
[1748192602554,3.98311821,2510.6,2510.5,0.8929]
[1748192603506,0.96619961,2510.7,2510.6,8.8929]
[1748192603790,0.96619961,2510.7,2510.6,1.33524898]
[1748192604101,0.33245092,2510.7,2510.6,9.33524898]
[1748192604494,0.47534392,2510.8,2510.6,9.33524898]
[1748192605899,4.45334392,2510.9,2510.6,9.33524898]
[1748192606610,0.47534392,2510.9,2510.6,1.33524898]
[1748192606897,4.45334392,2510.9,2510.7,8.0]
[1748192608174,4.45334392,2510.9,2510.6,1.33524898]
[1748192608371,4.45334392,2510.9,2510.7,8.0]
[1748192609906,0.47534392,2510.9,2510.7,8.0]
[1748192610106,4.45334392,2510.9,2510.7,8.0]
[1748192610712,0.47534392,2510.9,2510.8,4.87109432]
[1748192610910,0.47534392,2510.9,2510.8,13.45494015]
[1748192611109,0.47534392,2511.0,2510.9,4.8709357]
[1748192612042,0.47534392,2511.0,2510.9,14.46925053]
[1748192612344,0.47534392,2511.0,2510.9,14.42942843]
[1748192612512,0.47534392,2511.0,2510.9,16.41499345]
[1748192613251,2.0037018,2511.4,2511.2,0.8883]
[1748192613430,2.0037018,2511.4,2511.3,8.0]
[1748192613738,2.0037018,2511.4,2511.2,12.87045812]
[1748192614445,2.0037018,2511.4,2511.3,3.98200135]
[1748192614647,2.0037018,2511.4,2511.3,4.87030135]
[1748192614846,2.0037018,2511.4,2511.3,12.87030135]
[1748192617052,2.0037018,2511.4,2511.3,8.8883]
[1748192617621,2.0037018,2511.4,2511.3,12.87083135]
[1748192617821,2.0037018,2511.4,2511.3,13.74603135]
[1748192619056,12.2122173,2511.8,2511.5,8.0]
[1748192619221,8.231,2511.8,2511.5,8.0]
[1748192619422,3.978,2511.7,2511.5,8.0]
[1748192620262,3.978,2511.7,2511.3,12.85714684]
[1748192620439,7.9593911,2511.7,2511.3,12.85714684]
[1748192620629,3.98144815,2511.7,2511.3,4.85719505]
[1748192620828,7.95844815,2511.7,2511.3,4.85719505]
[1748192621031,3.977,2511.7,2511.4,8.0]
[1748192622068,3.977,2511.7,2511.4,11.98179581]
[1748192622436,12.57405878,2511.9,2511.6,8.0]
[1748192622771,3.977,2511.9,2511.8,8.0]
[1748192622939,0.47534392,2512.0,2511.9,0.8878]
[1748192623140,0.47534392,2512.0,2511.9,12.8688502]
[1748192623845,2.0037018,2512.1,2511.9,8.8878]
[1748192624051,4.253,2512.2,2511.9,8.8878]
[1748192624052,8.23358331,2512.2,2511.9,8.8878]
[1748192625482,4.253,2512.2,2512.0,8.0]
[1748192626049,4.253,2512.2,2511.9,0.8878]
[1748192626382,9.96118778,2512.3,2511.9,0.8878]
[1748192626383,2.0037018,2512.3,2512.0,3.98080721]
[1748192626546,5.9807018,2512.3,2512.0,8.0]
[1748192626971,5.9807018,2512.3,2512.0,11.98086447]
[1748192627460,5.9807018,2512.3,2512.0,8.0]
[1748192627795,2.0037018,2512.3,2512.1,3.98063592]
[1748192627967,5.9807018,2512.3,2512.1,8.0]
[1748192628710,3.977,2512.3,2512.1,8.0]
[1748192629372,3.9802678,2512.4,2512.1,8.0]
[1748192629592,3.977,2512.3,2512.1,8.0]
[1748192630159,8.23217413,2512.5,2512.1,3.9807198]
[1748192630411,3.976,2512.4,2512.2,8.0]
[1748192630896,6.45870748,2512.8,2512.2,1.19807198]
[1748192631114,6.73104572,2512.8,2512.7,8.0]
[1748192631261,2.0037018,2512.8,2512.7,12.8903827]
[1748192632118,2.0037018,2512.8,2512.7,8.9106]
[1748192632607,0.05,2512.9,2512.8,8.0]
[1748192633000,0.05,2512.9,2512.7,0.9106]
[1748192633396,0.05,2512.9,2512.7,12.89029118]
[1748192633583,0.05,2512.9,2512.7,4.89029118]
[1748192633789,0.05,2512.9,2512.7,0.9106]
[1748192635445,4.02949573,2512.9,2512.7,0.9106]
[1748192635718,4.02949573,2512.9,2511.8,1.94487127]
[1748192635719,0.55,2512.5,2511.7,0.9303]
[1748192635880,0.55,2512.5,2511.8,8.0]
[1748192636080,8.227,2512.4,2511.8,3.98116075]
[1748192636404,3.98061191,2512.2,2511.8,1.29114607]
[1748192636718,3.976,2512.2,2511.9,8.0]
[1748192638593,3.976,2512.2,2511.9,11.98102507]
[1748192639225,8.23138107,2512.4,2511.9,11.98102507]
[1748192639431,3.976,2512.2,2512.0,3.9808734]
[1748192640225,3.976,2512.2,2511.9,11.98093785]
[1748192640396,0.55,2512.5,2512.0,3.98078981]
[1748192640580,0.55,2512.5,2512.4,8.0]
[1748192640581,0.47534392,2512.5,2512.4,8.0]
[1748192641603,0.47534392,2512.5,2512.4,11.98025792]
[1748192641828,3.976,2512.7,2512.4,11.98025792]
[1748192642183,3.976,2512.7,2512.4,3.98025674]
[1748192642423,3.976,2512.7,2512.4,8.0]
[1748192642812,7.95582009,2512.7,2512.4,8.0]
[1748192643008,7.95593415,2512.7,2512.4,8.0]
[1748192643685,3.97993415,2512.7,2512.4,8.0]
[1748192644025,7.95593415,2512.7,2512.4,8.0]
[1748192644523,3.976,2512.7,2512.4,8.0]
[1748192645083,3.976,2512.7,2512.4,11.98018254]
[1748192645386,3.976,2512.7,2512.4,8.0]
[1748192645987,3.976,2512.7,2512.4,11.98017646]
[1748192646187,4.02953661,2512.9,2512.6,8.0]
[1748192646387,3.976,2512.8,2512.4,11.98017779]
[1748192647264,7.95567015,2512.8,2512.3,8.0]
[1748192647470,3.976,2512.8,2512.4,3.98018476]
[1748192647772,4.02955732,2512.9,2512.4,3.98018476]
[1748192647950,3.975,2512.7,2512.4,3.98018476]
[1748192648151,9.20423308,2512.9,2512.3,11.9802918]
[1748192648152,0.05,2512.9,2512.6,8.0]
[1748192648461,8.274,2512.9,2512.7,8.0]
[1748192649367,8.274,2512.9,2512.6,0.8565]
[1748192649527,8.274,2512.9,2512.7,8.0]
[1748192649728,4.299,2512.9,2512.7,8.0]
[1748192650046,3.975,2512.8,2512.7,8.0]
[1748192650257,8.274,2512.9,2512.7,11.9797827]
[1748192650768,8.274,2512.9,2512.7,8.0]
[1748192651342,3.975,2512.8,2512.7,8.0]
[1748192651571,3.975,2512.8,2512.7,11.9797827]
[1748192651868,3.975,2512.8,2512.7,8.0]
[1748192652849,3.975,2512.8,2512.7,11.9797827]
[1748192653063,3.975,2512.8,2512.7,8.0]
[1748192653643,3.975,2512.8,2512.7,11.9797827]
[1748192653844,0.05,2512.9,2512.7,8.0]
[1748192654083,3.975,2512.8,2512.7,8.0]
[1748192654484,3.975,2512.8,2512.7,11.9797827]
[1748192654655,3.975,2512.8,2512.6,8.8565]
[1748192654859,3.975,2512.8,2512.6,4.83636366]
[1748192655071,0.05,2512.9,2512.8,8.0]
[1748192655284,4.025,2512.9,2512.7,8.0]
[1748192655782,4.025,2512.9,2512.6,4.83639622]
[1748192655957,0.55,2512.7,2512.2,0.8797]
[1748192656161,3.975,2512.6,2512.2,4.86018319]
[1748192656353,0.55,2512.7,2512.4,3.98023988]
[1748192656674,3.975,2512.6,2512.3,11.98032592]
[1748192656879,3.975,2512.6,2512.4,3.98020297]
[1748192657097,3.975,2512.6,2512.5,8.0]
[1748192657473,3.975,2512.6,2512.3,11.98033765]
[1748192658282,3.975,2512.6,2512.3,3.98039069]
[1748192658447,5.38092845,2512.6,2512.3,3.98039069]
[1748192659571,5.38092845,2512.6,2512.2,12.86019558]
[1748192659768,5.38092845,2512.6,2512.3,3.98038732]
[1748192659971,0.2226,2512.5,2511.9,3.98097226]
[1748192660147,3.975,2512.4,2511.9,3.98097226]
[1748192660486,7.95535417,2512.4,2511.9,3.98097226]
[1748192660983,4.45034392,2512.4,2511.9,3.98097226]
[1748192661185,3.98064029,2512.2,2511.8,8.0]
[1748192661393,3.98077582,2512.1,2511.7,8.0]
[1748192661565,7.95564029,2512.2,2511.8,3.98110767]
[1748192661566,3.975,2512.2,2511.8,3.98110767]
[1748192661761,3.975,2512.2,2511.8,4.52512699]
[1748192662103,9.19677894,2512.2,2511.8,12.52522299]
[1748192662285,9.19677894,2512.2,2511.8,4.52522299]
[1748192662686,9.19677894,2512.2,2511.8,0.54401932]
[1748192662886,5.21612193,2512.2,2511.8,4.52514601]
[1748192663990,5.21612193,2512.2,2511.8,4.52516817]
[1748192664551,9.19669738,2512.2,2511.8,4.52516817]
[1748192664751,5.21612193,2512.2,2511.8,4.52516817]
[1748192665653,1.24112193,2512.2,2512.0,8.0]